bitfinex-derivatives/quotes_BTCF0:USTF0_20240903
["timestamp","ask_amount","ask_price","bid_price","bid_amount"]
[1725377089488,0.3608,57770.0,57765.0,0.3608]
[1725377092371,0.3628,57770.0,57765.0,0.3608]
[1725377092569,0.3628,57770.0,57767.0,0.3]
[1725377092771,0.3678,57770.0,57767.0,0.3]
[1725377092971,0.007,57770.0,57769.0,0.086573]
[1725377093171,0.00025966,57773.0,57771.0,0.086569]
[1725377093369,0.00025966,57773.0,57772.0,0.3608]
[1725377093573,0.3,57782.0,57772.0,0.447368]
[1725377093776,0.3,57782.0,57778.0,0.3608]
[1725377093971,0.3,57782.0,57778.0,0.36946603]
[1725377095274,0.173128,57775.0,57774.0,0.00025966]
[1725377095476,0.386564,57775.0,57774.0,0.00025966]
[1725377095673,1.505844,57775.0,57774.0,0.00025966]
[1725377095972,1.592408,57775.0,57774.0,0.00025966]
[1725377096175,1.591408,57775.0,57774.0,0.00025966]
[1725377096373,1.504844,57775.0,57774.0,0.00025966]
[1725377096576,1.597408,57775.0,57774.0,0.00125966]
[1725377096876,1.604408,57775.0,57774.0,0.0338627]
[1725377097072,1.517844,57775.0,57774.0,0.00225966]
[1725377097378,1.604408,57775.0,57774.0,0.00225966]
[1725377098175,1.517844,57775.0,57774.0,0.00225966]
[1725377098476,0.917844,57775.0,57774.0,0.03357273]
[1725377098666,0.911844,57775.0,57774.0,0.00225966]
[1725377098868,0.993408,57775.0,57774.0,0.00225966]
[1725377099278,0.906844,57775.0,57774.0,0.00225966]
[1725377099774,0.993408,57775.0,57774.0,0.00225966]
[1725377099975,0.086576,57767.0,57766.0,0.03097005]
[1725377100176,0.085581,57764.0,57760.0,0.086585]
[1725377100478,0.085581,57764.0,57761.0,0.086584]
[1725377100878,0.310077,57766.0,57763.0,0.086582]
[1725377101176,0.00025966,57768.0,57767.0,0.086576]
[1725377101478,0.002,57775.0,57771.0,0.08657]
[1725377101778,0.009,57775.0,57771.0,0.08657]
[1725377101978,0.009,57775.0,57773.0,0.3608]
[1725377102280,0.001,57775.0,57773.0,0.3608]
[1725377102973,0.3,57779.0,57773.0,0.3608]
[1725377102974,0.3,57779.0,57773.0,0.447366]
[1725377103172,0.006,57775.0,57774.0,0.001]
[1725377103891,0.005,57775.0,57774.0,0.51928]
[1725377104072,0.005,57775.0,57773.0,0.447366]
[1725377104682,0.00025966,57780.0,57773.0,0.447366]
[1725377104683,0.00025966,57780.0,57776.0,0.086562]
[1725377104896,0.00025966,57780.0,57779.0,0.6608]
[1725377105180,0.3608,57786.0,57779.0,0.75587665]
[1725377105375,0.3608,57786.0,57779.0,0.66931865]
[1725377105574,0.3,57780.0,57779.0,0.36931865]
[1725377106172,0.3,57780.0,57779.0,0.38031865]
[1725377106372,0.3,57783.0,57779.0,0.38031865]
[1725377106579,0.00025882,57785.0,57779.0,0.38031865]
[1725377106773,0.002,57780.0,57779.0,0.36931865]
[1725377106976,0.002,57780.0,57779.0,0.45587665]
[1725377107184,0.00025882,57785.0,57783.0,0.086551]
[1725377108070,0.00025882,57785.0,57780.0,0.2445]
[1725377108270,0.3,57783.0,57779.0,0.37031865]
[1725377108483,0.006,57780.0,57779.0,0.67131865]
[1725377108685,0.00025882,57785.0,57779.0,1.84222636]
[1725377108883,0.3608,57798.0,57784.0,0.6608]
[1725377109085,0.3608,57798.0,57790.0,0.3608]
[1725377109486,0.3608,57798.0,57795.0,0.086534]
[1725377109883,0.3608,57805.0,57796.0,0.3608]
[1725377110974,0.3,57803.0,57796.0,0.3608]
[1725377111181,0.086531,57797.0,57791.0,0.00025966]
[1725377111385,0.173076,57792.0,57791.0,0.00025966]
[1725377111585,0.173076,57792.0,57784.0,0.0004]
[1725377111586,0.086549,57785.0,57784.0,0.0004]
[1725377111789,0.473098,57785.0,57784.0,0.0004]
[1725377112382,0.386549,57785.0,57784.0,0.0004]
[1725377112581,0.387349,57785.0,57784.0,0.0004]
[1725377113892,0.387349,57785.0,57784.0,0.0084]
[1725377115282,0.387349,57785.0,57784.0,0.0164]
[1725377115687,0.387349,57785.0,57784.0,0.03946867]
[1725377115876,0.0028,57785.0,57784.0,0.03946867]
[1725377116382,0.0008,57785.0,57784.0,0.03946867]
[1725377116586,0.0028,57785.0,57784.0,0.04046867]
[1725377116788,0.0038,57785.0,57784.0,0.39326867]
[1725377117089,0.0038,57785.0,57784.0,0.47981867]
[1725377117487,0.0038,57785.0,57784.0,0.39326867]
[1725377117689,0.0038,57785.0,57784.0,0.39426867]
[1725377118486,0.3028,57785.0,57784.0,0.03246867]
[1725377118691,0.476898,57785.0,57784.0,0.03246867]
[1725377119089,0.476898,57785.0,57784.0,0.03146867]
[1725377119489,0.173112,57780.0,57779.0,0.00025966]
[1725377119791,0.920468,57780.0,57779.0,0.00025966]
[1725377119993,0.747356,57780.0,57779.0,0.00025966]
[1725377120195,0.748156,57780.0,57779.0,0.00025966]
[1725377121493,0.748156,57780.0,57779.0,0.00225966]
[1725377121698,0.748156,57780.0,57779.0,0.00425966]
[1725377122194,0.834712,57780.0,57779.0,0.00425966]
[1725377122395,0.748156,57780.0,57779.0,0.00425966]
[1725377122784,0.748156,57780.0,57779.0,0.00225966]
[1725377123596,0.749156,57780.0,57779.0,0.00025966]
[1725377124095,0.3626,57780.0,57779.0,0.00025966]
[1725377124482,0.835712,57780.0,57779.0,0.00125966]
[1725377124686,0.837712,57780.0,57779.0,0.00225966]
[1725377124887,1.356912,57780.0,57779.0,0.00225966]
[1725377125093,1.443468,57780.0,57779.0,0.00225966]
[1725377125293,2.153468,57780.0,57779.0,0.00225966]
[1725377125999,2.155468,57780.0,57779.0,0.00225966]
[1725377126488,2.151468,57780.0,57779.0,0.00125966]
[1725377126687,2.22399618,57780.0,57779.0,0.00225966]
[1725377127992,0.949712,57780.0,57779.0,0.00225966]
[1725377128183,0.947712,57780.0,57779.0,0.00225966]
[1725377129895,1.186912,57780.0,57779.0,0.00225966]
[1725377130197,2.392668,57780.0,57779.0,0.00225966]
[1725377130699,2.46119618,57780.0,57779.0,0.00225966]
[1725377131195,1.16888418,57780.0,57779.0,0.00225966]
[1725377131400,0.451156,57780.0,57779.0,0.08881766]
[1725377131597,0.090356,57780.0,57779.0,0.08881766]
[1725377131801,0.0038,57780.0,57779.0,0.08881766]
[1725377132389,0.0038,57780.0,57779.0,1.50801766]
[1725377132596,0.3608,57786.0,57779.0,1.50801766]
[1725377132597,0.3608,57786.0,57785.0,0.086549]
[1725377133005,0.3608,57786.0,57783.0,0.35172827]
[1725377133006,0.3608,57786.0,57783.0,0.05172827]
[1725377133195,0.6608,57786.0,57782.0,0.05172827]
[1725377133396,0.086553,57782.0,57781.0,0.05172827]
[1725377134006,0.086553,57782.0,57779.0,0.00205966]
[1725377134489,0.3608,57786.0,57782.0,0.086553]
[1725377134695,0.3608,57786.0,57783.0,0.13828359]
[1725377135399,0.08680066,57790.0,57784.0,0.08655]
[1725377135400,0.00025966,57790.0,57784.0,0.08655]
[1725377135601,0.00025966,57790.0,57786.0,0.05172036]
[1725377135798,0.38680166,57790.0,57786.0,0.05172036]
[1725377136195,0.086543,57789.0,57786.0,0.05172036]
[1725377137697,0.086543,57789.0,57786.0,0.001]
[1725377138100,0.086543,57789.0,57786.0,0.05272036]
[1725377138307,0.3,57787.0,57785.0,0.05172036]
[1725377138500,0.386546,57787.0,57786.0,0.001]
[1725377139400,0.08655,57784.0,57783.0,0.08233824]
[1725377139603,0.08735,57784.0,57783.0,0.08235007]
[1725377139904,0.1739,57784.0,57783.0,0.03061788]
[1725377140109,0.086556,57780.0,57779.0,0.00105966]
[1725377140300,0.087356,57780.0,57779.0,0.00105966]
[1725377140496,0.173912,57780.0,57779.0,0.00105966]
[1725377140703,0.173912,57780.0,57779.0,0.03265939]
[1725377141105,0.172912,57780.0,57779.0,0.03265939]
[1725377141508,0.086356,57780.0,57779.0,0.03265939]
[1725377142008,0.086356,57780.0,57779.0,0.03365939]
[1725377142397,0.0008,57780.0,57779.0,1.53841739]
[1725377142605,0.3608,57789.0,57786.0,0.086546]
[1725377142808,0.3608,57789.0,57787.0,0.2268]
[1725377143001,0.00025966,57790.0,57787.0,0.2268]
[1725377143205,0.08680266,57790.0,57787.0,0.2268]
[1725377143509,0.00025966,57790.0,57789.0,0.086543]
[1725377143998,0.00025966,57790.0,57788.0,0.3]
[1725377144401,0.00025966,57790.0,57788.0,0.386544]
[1725377144799,0.00025966,57790.0,57789.0,0.3608]
[1725377145005,0.00225966,57790.0,57789.0,0.3608]
[1725377145209,0.00225966,57790.0,57789.0,0.41257132]
[1725377145611,0.00225966,57790.0,57789.0,0.3608]
[1725377148612,0.00225966,57790.0,57789.0,0.41251037]
[1725377149214,0.00025966,57790.0,57789.0,0.41251037]
[1725377149413,0.00125966,57790.0,57789.0,0.3608]
[1725377149617,0.00125966,57790.0,57788.0,0.03176319]
[1725377149618,0.086543,57789.0,57788.0,0.03176319]
[1725377149803,0.086546,57787.0,57784.0,0.05171037]
[1725377150004,0.0008,57785.0,57783.0,0.05171037]
[1725377150216,0.0008,57785.0,57784.0,0.05171037]
[1725377150705,0.086549,57786.0,57784.0,0.05171037]
[1725377151105,0.086549,57786.0,57780.0,0.40015873]
[1725377151106,0.3,57788.0,57783.0,0.05171037]
[1725377151310,0.3,57788.0,57779.0,0.05277003]
[1725377151311,0.086555,57781.0,57779.0,0.05277003]
[1725377151610,0.3004,57784.0,57779.0,0.00105966]
[1725377151611,0.086556,57780.0,57779.0,0.00105966]
[1725377151812,0.086556,57780.0,57779.0,0.03181675]
[1725377152016,0.086556,57780.0,57779.0,0.00105966]
[1725377152611,0.086556,57780.0,57779.0,0.0314428]
[1725377153012,0.0004,57784.0,57779.0,0.08315317]
[1725377153219,0.0004,57784.0,57783.0,0.3608]
[1725377154118,0.0004,57784.0,57783.0,0.41252131]
[1725377154311,0.0008,57789.0,57783.0,1.53168131]
[1725377154615,0.0008,57789.0,57788.0,0.086544]
[1725377154822,0.0008,57789.0,57788.0,0.13826467]
[1725377155115,0.3608,57794.0,57791.0,0.086539]
[1725377155309,0.447329,57799.0,57793.0,0.3]
[1725377155310,0.086529,57799.0,57793.0,0.3]
[1725377156504,0.001,57794.0,57793.0,0.3]
[1725377157017,0.087529,57799.0,57793.0,0.3]
[1725377157813,0.001,57794.0,57793.0,0.3]
[1725377158615,0.001,57794.0,57793.0,0.35171577]
[1725377158921,0.001,57794.0,57793.0,0.33088216]
[1725377159127,0.001,57794.0,57793.0,0.39982578]
[1725377159307,0.086523,57803.0,57793.0,0.39982578]
[1725377159308,0.086523,57803.0,57795.0,0.086533]
[1725377159512,0.086523,57803.0,57798.0,0.3608]
[1725377159713,0.32332,57805.0,57798.0,0.3608]
[1725377159922,0.001,57799.0,57798.0,0.3608]
[1725377160111,0.001,57799.0,57798.0,0.41253012]
[1725377160312,0.001,57799.0,57798.0,0.3608]
[1725377160618,0.086522,57803.0,57798.0,0.3608]
[1725377160619,0.001,57803.0,57798.0,0.3608]
[1725377160822,0.001,57803.0,57799.0,0.05175276]
[1725377161223,0.001,57803.0,57801.0,0.35175276]
[1725377161734,0.001,57803.0,57802.0,0.086523]
[1725377161916,0.001,57803.0,57802.0,0.13827566]
[1725377162217,0.086515,57808.0,57800.0,0.05175266]
[1725377162522,0.3,57807.0,57803.0,0.3608]
[1725377162818,0.085526,57800.0,57799.0,0.05201232]
[1725377163012,0.385926,57800.0,57799.0,0.05199994]
[1725377163210,0.385926,57800.0,57799.0,0.00025966]
[1725377163925,0.384926,57800.0,57799.0,0.00025966]
[1725377164115,0.0004,57800.0,57799.0,0.00025966]
[1725377164309,0.0004,57800.0,57799.0,0.00125966]
[1725377164509,0.0004,57800.0,57799.0,0.05299059]
[1725377164713,0.0004,57800.0,57799.0,0.05399059]
[1725377164911,0.0004,57800.0,57799.0,0.00225966]
[1725377165716,0.0004,57800.0,57799.0,0.08878766]
[1725377165914,0.0004,57800.0,57799.0,1.20782766]
[1725377166118,0.086514,57809.0,57801.0,0.086524]
[1725377166324,0.4672,57810.0,57803.0,0.086522]
[1725377167622,0.004,57809.0,57803.0,0.086522]
[1725377167823,0.004,57809.0,57802.0,0.3608]
[1725377168225,0.004,57809.0,57803.0,0.3]
[1725377168526,0.002,57809.0,57803.0,0.5396]
[1725377168713,0.002,57809.0,57803.0,0.2396]
[1725377168919,0.088514,57809.0,57803.0,0.001]
[1725377169231,0.003,57810.0,57803.0,0.088521]
[1725377169618,0.003,57810.0,57805.0,0.086519]
[1725377169818,0.001,57809.0,57805.0,0.086519]
[1725377170322,0.001,57809.0,57803.0,0.302]
[1725377170323,0.086514,57808.0,57803.0,0.001]
[1725377170527,0.08692,57804.0,57803.0,0.002]
[1725377170829,0.62076,57804.0,57803.0,0.002]
[1725377171227,0.68928818,57804.0,57803.0,0.002]
[1725377171423,0.85536,57804.0,57803.0,0.001]
[1725377171927,0.173052,57800.0,57799.0,0.00025966]
[1725377172227,0.62851531,57800.0,57799.0,0.00025966]
[1725377172424,1.679018,57800.0,57799.0,0.00025966]
[1725377172722,1.678018,57800.0,57799.0,0.00025966]
[1725377173115,1.678018,57800.0,57785.0,0.004]
[1725377173116,0.086547,57786.0,57785.0,0.004]
[1725377173315,0.085549,57785.0,57784.0,0.00564]
[1725377173623,0.085549,57785.0,57784.0,0.0032]
[1725377173624,0.676549,57785.0,57784.0,0.0032]
[1725377174620,0.315749,57785.0,57784.0,0.0032]
[1725377174824,0.314749,57785.0,57784.0,0.0032]
[1725377175722,0.315749,57785.0,57784.0,0.0032]
[1725377176829,0.679549,57785.0,57784.0,0.0032]
[1725377177132,0.766098,57785.0,57784.0,0.0032]
[1725377177326,0.679549,57785.0,57784.0,0.0032]
[1725377177522,0.318749,57785.0,57784.0,0.0032]
[1725377177729,0.004,57785.0,57784.0,0.0032]
[1725377178531,0.004,57785.0,57784.0,0.08975]
[1725377178922,0.004,57785.0,57784.0,1.20891]
[1725377180029,0.00025966,57790.0,57785.0,0.605709]
[1725377180219,0.00025966,57790.0,57789.0,0.6608]
[1725377180623,0.00025966,57790.0,57789.0,0.05169885]
[1725377180825,0.086543,57789.0,57788.0,0.05169885]
[1725377181024,0.086543,57789.0,57784.0,0.0721287]
[1725377181025,0.4598,57789.0,57786.0,0.05169885]
[1725377181324,0.00025966,57790.0,57787.0,0.3608]
[1725377181524,0.00025966,57790.0,57789.0,0.0517036]
[1725377181929,0.00025966,57790.0,57788.0,0.3517036]
[1725377182229,0.00025966,57790.0,57788.0,0.905663]
[1725377182430,0.086533,57796.0,57788.0,0.9745917]
[1725377182729,0.086533,57796.0,57793.0,0.05171747]
[1725377183935,0.089533,57796.0,57793.0,0.05171747]
[1725377184735,0.086534,57795.0,57793.0,0.05171747]
[1725377185229,0.086534,57795.0,57792.0,0.05171747]
[1725377185429,0.003,57796.0,57792.0,0.13825447]
[1725377185736,0.003,57796.0,57793.0,0.05171747]
[1725377186125,0.003,57795.0,57793.0,0.05171747]
[1725377186529,0.670227,57800.0,57793.0,0.05171747]
[1725377186728,0.003,57796.0,57793.0,0.05171747]
[1725377186927,0.003,57796.0,57795.0,0.3]
[1725377187128,0.003,57796.0,57795.0,0.30845644]
[1725377187331,0.3608,57800.0,57795.0,0.30845644]
[1725377187835,0.086524,57802.0,57795.0,0.36017391]
[1725377188135,0.086522,57804.0,57795.0,0.36017391]
[1725377188340,0.086526,57801.0,57795.0,0.36017391]
[1725377188526,0.086522,57804.0,57795.0,0.36017391]
[1725377188726,0.086529,57799.0,57795.0,0.06017391]
[1725377189037,0.003,57796.0,57795.0,0.06017391]
[1725377189633,0.386526,57801.0,57795.0,0.06017391]
[1725377189834,0.086527,57800.0,57795.0,0.06017391]
[1725377190036,0.001,57799.0,57795.0,0.06017391]
[1725377190539,0.003,57796.0,57795.0,0.06017391]
[1725377191037,0.06854892,57810.0,57794.0,0.3689287]
[1725377191228,0.06854892,57810.0,57791.0,0.39416983]
[1725377191229,0.086505,57815.0,57806.0,0.3]
[1725377191428,0.42934892,57816.0,57810.0,0.3]
[1725377191429,0.3608,57816.0,57810.0,0.3]
[1725377191629,0.3608,57820.0,57814.0,0.6608]
[1725377191837,0.3608,57820.0,57815.0,0.086504]
[1725377192037,0.3608,57820.0,57814.0,0.6608]
[1725377192038,0.3608,57820.0,57814.0,0.71252157]
[1725377192228,0.3608,57820.0,57817.0,0.086501]
[1725377192426,0.3608,57820.0,57814.0,0.6608]
[1725377192629,0.001,57816.0,57814.0,0.6608]
[1725377193037,0.0008,57815.0,57814.0,0.6608]
[1725377193244,0.0008,57815.0,57814.0,0.3608]
[1725377193737,0.0008,57815.0,57814.0,0.39273868]
[1725377194947,0.3608,57820.0,57814.0,0.69273868]
[1725377195244,0.3608,57820.0,57814.0,0.69373868]
[1725377195534,0.3608,57820.0,57814.0,0.39373868]
[1725377195935,0.3608,57820.0,57814.0,0.39173868]
[1725377196135,0.6608,57820.0,57814.0,0.39173868]
[1725377196340,0.086504,57815.0,57814.0,0.03093868]
[1725377196529,0.086504,57815.0,57809.0,0.3608]
[1725377196730,0.086506,57814.0,57809.0,0.3608]
[1725377197034,0.086506,57814.0,57809.0,0.39201646]
[1725377197628,0.086506,57814.0,57809.0,0.39501646]
[1725377198830,0.0008,57810.0,57809.0,0.39801646]
[1725377199034,0.0008,57810.0,57809.0,0.69801646]
[1725377199263,0.086494,57822.0,57809.0,0.69501646]
[1725377199542,0.52958383,57824.0,57817.0,0.3]
[1725377199543,0.22958383,57824.0,57817.0,0.3]
[1725377199746,0.086493,57823.0,57817.0,0.3]
[1725377200739,0.447283,57830.0,57814.0,0.447305]
[1725377200740,0.3608,57836.0,57823.0,0.086492]
[1725377200944,0.3608,57836.0,57831.0,0.3]
[1725377200945,0.3508,57836.0,57831.0,0.3]
[1725377201240,0.3508,57836.0,57831.0,0.00880872]
[1725377201446,0.086482,57830.0,57825.0,0.3608]
[1725377201745,0.086482,57830.0,57825.0,4.13928856]
[1725377202138,0.086477,57833.0,57825.0,4.13928856]
[1725377202438,0.086474,57835.0,57830.0,0.3608]
[1725377202941,0.2199,57837.0,57830.0,0.3608]
[1725377203135,0.2197,57844.0,57835.0,0.3608]
[1725377203136,0.086467,57840.0,57835.0,0.3608]
[1725377203840,0.086468,57839.0,57835.0,0.3608]
[1725377204741,0.08647,57838.0,57835.0,0.3608]
[1725377205444,0.086472,57836.0,57835.0,0.3608]
[1725377206049,0.326472,57836.0,57835.0,0.3608]
[1725377206736,0.08648,57831.0,57830.0,0.39226532]
[1725377206937,0.32648,57831.0,57830.0,0.39226532]
[1725377207137,0.79128,57831.0,57830.0,0.39226532]
[1725377207347,1.01688,57831.0,57830.0,0.39226532]
[1725377207742,0.77688,57831.0,57830.0,0.39226532]
[1725377207943,1.10336,57831.0,57830.0,0.03146532]
[1725377208141,0.086484,57828.0,57827.0,0.21905616]
[1725377208343,0.0004,57828.0,57827.0,0.11784462]
[1725377208551,0.0004,57828.0,57827.0,0.3]
[1725377208955,0.086479,57832.0,57830.0,0.0006]
[1725377209147,0.086479,57832.0,57831.0,0.6608]
[1725377209443,0.4488,57840.0,57831.0,0.6608]
[1725377209444,0.086476,57834.0,57831.0,0.6608]
[1725377209648,0.086469,57838.0,57831.0,0.6608]
[1725377209845,0.086478,57832.0,57831.0,0.6608]
[1725377212550,0.087478,57832.0,57831.0,0.6608]
[1725377212958,0.173956,57832.0,57831.0,0.3608]
[1725377213455,0.172972,57827.0,57826.0,0.03098801]
[1725377213653,0.086484,57829.0,57824.0,0.36105943]
[1725377213654,0.172978,57825.0,57824.0,0.36105943]
[1725377213843,0.172978,57825.0,57824.0,0.39286978]
[1725377214151,0.172978,57825.0,57824.0,0.40161862]
[1725377214655,0.173378,57825.0,57824.0,0.40161862]
[1725377214857,0.258867,57825.0,57824.0,0.03206978]
[1725377215459,0.257867,57825.0,57824.0,0.03206978]
[1725377216149,0.257867,57825.0,57824.0,0.03506978]
[1725377216543,0.257867,57825.0,57824.0,0.03806978]
[1725377216743,0.257867,57825.0,57824.0,0.03606978]
[1725377217057,0.257867,57825.0,57824.0,7.8e-07]
[1725377217058,1.737467,57825.0,57824.0,7.8e-07]
[1725377217244,1.78874777,57825.0,57824.0,7.8e-07]
[1725377217552,1.89350492,57825.0,57824.0,7.8e-07]
[1725377217756,1.824956,57825.0,57824.0,7.8e-07]
[1725377217949,0.259488,57820.0,57819.0,2.1e-07]
[1725377218150,0.67212605,57820.0,57819.0,2.1e-07]
[1725377218355,1.79096605,57820.0,57819.0,2.1e-07]
[1725377218855,0.620688,57820.0,57819.0,2.1e-07]
[1725377219158,1.739528,57820.0,57819.0,2.1e-07]
[1725377219457,1.442528,57820.0,57819.0,2.1e-07]
[1725377219649,2.046528,57820.0,57819.0,2.1e-07]
[1725377219846,0.927688,57820.0,57819.0,2.1e-07]
[1725377220042,2.046528,57820.0,57819.0,2.1e-07]
[1725377220254,0.927688,57820.0,57819.0,2.1e-07]
[1725377220457,2.046528,57820.0,57819.0,2.1e-07]
[1725377220952,1.51511398,57820.0,57819.0,2.1e-07]
[1725377221154,1.446528,57820.0,57819.0,2.1e-07]
[1725377221452,1.51523868,57820.0,57819.0,2.1e-07]
[1725377221652,1.42874268,57820.0,57819.0,2.1e-07]
[1725377221844,0.841192,57820.0,57819.0,2.1e-07]
[1725377222743,0.927688,57820.0,57819.0,2.1e-07]
[1725377224271,2.046528,57820.0,57819.0,2.1e-07]
[1725377224948,2.133024,57820.0,57819.0,2.1e-07]
[1725377225145,2.243024,57820.0,57819.0,2.1e-07]
[1725377226259,0.259539,57809.0,57808.0,2.1e-07]
[1725377226459,1.007252,57809.0,57808.0,2.1e-07]
[1725377226664,2.126212,57809.0,57808.0,2.1e-07]
[1725377226966,0.920739,57809.0,57808.0,2.1e-07]
[1725377227155,1.897199,57809.0,57808.0,2.1e-07]
[1725377227461,1.378239,57809.0,57808.0,0.00800021]
[1725377228361,1.897199,57809.0,57808.0,0.00800021]
[1725377228557,1.378239,57809.0,57808.0,0.00800021]
[1725377229957,1.231726,57809.0,57808.0,0.00800021]
[1725377231161,1.318239,57809.0,57808.0,0.00800021]
[1725377232453,0.774226,57809.0,57808.0,0.00800021]
[1725377232859,0.447713,57809.0,57808.0,0.09451421]
[1725377233252,0.0004,57809.0,57808.0,0.45531421]
[1725377233765,0.00025943,57814.0,57813.0,0.086507]
[1725377234064,0.00025943,57814.0,57813.0,0.687307]
[1725377234359,0.05547064,57831.0,57813.0,0.687307]
[1725377234360,0.004,57831.0,57821.0,0.086494]
[1725377234563,0.004,57831.0,57813.0,6.0774688]
[1725377234564,0.08648,57831.0,57830.0,0.24]
[1725377234763,0.08648,57831.0,57828.0,0.24]
[1725377234966,0.0004,57829.0,57828.0,0.24]
[1725377236058,0.0004,57829.0,57826.0,0.39200639]
[1725377236267,0.0004,57827.0,57826.0,0.39200639]
[1725377238461,0.0064,57827.0,57826.0,0.39300639]
[1725377238961,0.0064,57827.0,57826.0,0.03220639]
[1725377239353,0.099886,57827.0,57826.0,0.03320639]
[1725377240160,0.0054,57827.0,57826.0,0.03120639]
[1725377240365,0.0114,57827.0,57824.0,0.3608]
[1725377240554,0.0004,57825.0,57824.0,0.3608]
[1725377241566,0.0004,57825.0,57824.0,0.44729]
[1725377241772,0.00943162,57827.0,57826.0,0.086487]
[1725377241968,0.00025868,57834.0,57830.0,0.086481]
[1725377242268,0.00025868,57834.0,57826.0,0.84]
[1725377242269,0.00025868,57834.0,57833.0,0.24]
[1725377242465,0.00025868,57834.0,57833.0,0.24870297]
[1725377242766,0.00025868,57834.0,57833.0,0.85389997]
[1725377242966,0.00025868,57834.0,57833.0,1.45389997]
[1725377243465,0.4625,57846.0,57833.0,1.36742297]
[1725377243466,0.05147064,57846.0,57833.0,1.36742297]
[1725377243678,0.3608,57847.0,57833.0,1.36742297]
[1725377243679,0.3608,57847.0,57845.0,0.24]
[1725377244060,0.3608,57847.0,57842.0,0.6008]
[1725377244457,0.0004,57843.0,57842.0,0.6008]
[1725377244865,0.0004,57843.0,57839.0,0.00025943]
[1725377245174,0.086866,57840.0,57839.0,0.00025943]
[1725377245468,0.173332,57840.0,57839.0,0.00025943]
[1725377245869,0.172332,57840.0,57839.0,0.00025943]
[1725377246467,0.172332,57840.0,57839.0,0.00125943]
[1725377247481,1.42894864,57840.0,57839.0,0.00225943]
[1725377247665,1.291012,57840.0,57839.0,0.00225943]
[1725377247982,1.04239817,57840.0,57839.0,0.00225943]
[1725377248173,0.991012,57840.0,57839.0,0.00225943]
[1725377248365,0.472332,57840.0,57839.0,0.00125943]
[1725377248565,0.472332,57840.0,57839.0,0.00225943]
[1725377249373,1.64439817,57840.0,57839.0,0.00225943]
[1725377249880,1.593012,57840.0,57839.0,0.00225943]
[1725377250582,1.73088574,57840.0,57839.0,0.00225943]
[1725377250765,1.885944,57840.0,57839.0,4.3e-07]
[1725377251376,2.115944,57840.0,57839.0,4.3e-07]
[1725377251578,2.14398077,57840.0,57839.0,4.3e-07]
[1725377251788,0.259422,57835.0,57834.0,8.6e-07]
[1725377251976,0.17298,57824.0,57821.0,0.004]
[1725377252167,0.3608,57825.0,57824.0,0.08649]
[1725377252371,0.3608,57825.0,57824.0,0.38649]
[1725377253082,0.3598,57825.0,57824.0,0.38649]
[1725377253472,0.086485,57828.0,57824.0,0.38649]
[1725377253678,0.085485,57828.0,57825.0,0.3608]
[1725377254367,0.086486,57827.0,57825.0,0.3608]
[1725377255474,0.089486,57827.0,57826.0,0.2222]
[1725377256375,0.003,57827.0,57826.0,0.2222]
[1725377256581,0.003,57828.0,57826.0,0.2222]
[1725377256774,0.004,57827.0,57826.0,0.2222]
[1725377257177,0.008,57827.0,57826.0,0.2222]
[1725377257581,0.094486,57827.0,57826.0,0.2222]
[1725377257780,0.094486,57827.0,57826.0,0.0316402]
[1725377257979,0.094486,57827.0,57825.0,0.3608]
[1725377258172,0.0004,57826.0,57825.0,0.6608]
[1725377259471,0.0004,57826.0,57825.0,0.69242051]
[1725377259673,0.0034,57826.0,57825.0,0.69242051]
[1725377260075,0.0034,57826.0,57825.0,0.39242051]
[1725377260275,0.0034,57826.0,57825.0,0.03162051]
[1725377260476,0.086496,57820.0,57819.0,0.59425943]
[1725377260783,0.086896,57820.0,57819.0,0.59425943]
[1725377261179,0.086896,57820.0,57819.0,0.64579392]
[1725377261375,0.259888,57820.0,57819.0,0.03185814]
[1725377261683,0.559888,57820.0,57819.0,0.03185814]
[1725377262080,0.61127672,57820.0,57819.0,0.03585814]
[1725377262284,0.559888,57820.0,57819.0,0.03585814]
[1725377262501,1.651728,57820.0,57819.0,0.03585814]
[1725377263379,0.6014063,57820.0,57819.0,0.03885814]
[1725377263578,0.965232,57820.0,57819.0,0.03885814]
[1725377263978,0.446392,57820.0,57819.0,0.03885814]
[1725377264182,0.446392,57820.0,57819.0,0.03585814]
[1725377264383,0.446392,57820.0,57819.0,0.03785814]
[1725377264587,0.146392,57820.0,57819.0,0.03785814]
[1725377264787,0.146392,57820.0,57819.0,0.03585814]
[1725377265591,0.1979401,57820.0,57819.0,0.03585814]
[1725377265783,0.146392,57820.0,57819.0,0.03585814]
[1725377267985,0.386392,57820.0,57819.0,0.03585814]
[1725377269287,1.591728,57820.0,57819.0,0.00425943]
[1725377269790,1.701728,57820.0,57819.0,0.00425943]
[1725377270189,1.7532761,57820.0,57819.0,0.00425943]
[1725377270379,1.701728,57820.0,57819.0,0.00425943]
[1725377271182,1.591728,57820.0,57819.0,0.00425943]
[1725377271494,0.386392,57820.0,57819.0,0.00425943]
[1725377273387,0.059896,57820.0,57819.0,0.33075743]
[1725377274385,0.059896,57820.0,57819.0,0.00425943]
[1725377276491,0.146392,57820.0,57819.0,0.00425943]
[1725377278590,0.0004,57820.0,57819.0,0.00425943]
[1725377278787,0.086896,57820.0,57819.0,0.00425943]
[1725377278986,0.13846678,57820.0,57819.0,0.00425943]
[1725377280194,0.326896,57820.0,57819.0,0.00425943]
[1725377280586,0.37847262,57820.0,57819.0,0.00425943]
[1725377280890,0.0004,57820.0,57819.0,0.00425943]
[1725377281302,0.13847086,57820.0,57819.0,0.00425943]
[1725377281995,0.05197486,57820.0,57819.0,0.00425943]
[1725377282494,0.05197486,57820.0,57819.0,0.05600571]
[1725377282495,0.086896,57820.0,57819.0,0.05600571]
[1725377282901,0.0004,57820.0,57819.0,0.05600571]
[1725377283494,0.086896,57820.0,57819.0,0.05600571]
[1725377283903,0.0004,57820.0,57819.0,0.05600571]
[1725377284200,0.0004,57820.0,57819.0,0.00425943]